bitfinex/quotes_BTCUSD_20250102
["timestamp","ask_amount","ask_price","bid_price","bid_amount"]
[1735814758391,0.09288919,96763.0,96746.0,0.0453]
[1735814758600,0.09288919,96763.0,96761.0,0.023]
[1735814758810,0.07038341,96764.0,96763.0,0.023]
[1735814759028,0.07038341,96764.0,96763.0,0.12698632]
[1735814759871,0.07038341,96764.0,96763.0,0.20978632]
[1735814760073,0.0001708,96774.0,96767.0,0.20668]
[1735814760194,0.00022008,96774.0,96768.0,0.10398632]
[1735814760398,0.00022008,96774.0,96771.0,0.023]
[1735814760610,0.00022008,96774.0,96773.0,0.023]
[1735814760849,0.00022008,96774.0,96773.0,0.12698632]
[1735814761857,0.00122008,96774.0,96773.0,0.13298632]
[1735814762467,0.00122008,96774.0,96773.0,0.15357253]
[1735814762744,0.01740842,96774.0,96773.0,0.15357253]
[1735814763154,0.01740842,96774.0,96773.0,0.16257253]
[1735814767726,0.00122008,96774.0,96773.0,0.66257253]
[1735814772171,0.00122008,96774.0,96773.0,0.70395753]
[1735814772399,0.01740946,96774.0,96773.0,0.70395753]
[1735814773121,0.01740946,96774.0,96773.0,0.70375753]
[1735814778226,0.51431346,96793.0,96773.0,0.70375753]
[1735814778407,0.51431346,96793.0,96780.0,0.206653]
[1735814778564,0.51431346,96793.0,96781.0,0.12698632]
[1735814778949,0.0797,96798.0,96781.0,0.12698632]
[1735814779847,0.0797,96798.0,96781.0,0.13598632]
[1735814780020,0.0797,96798.0,96781.0,0.12698632]
[1735814780217,0.0797,96798.0,96781.0,0.13598632]
[1735814780781,0.0011708,96782.0,96781.0,0.14298632]
[1735814781179,0.0001708,96782.0,96781.0,0.13598632]
[1735814781611,0.0011708,96782.0,96781.0,0.13398632]
[1735814782017,0.0011708,96782.0,96781.0,0.14298632]
[1735814782222,0.0011708,96782.0,96781.0,0.13398632]
[1735814782423,0.0011708,96782.0,96781.0,0.14298632]
[1735814782600,0.0173582,96782.0,96781.0,0.14298632]
[1735814783906,0.0173582,96782.0,96781.0,0.15587967]
[1735814789010,0.0011708,96782.0,96781.0,0.15587967]
[1735814790491,0.0011708,96782.0,96781.0,0.15577967]
[1735814791574,0.0011708,96782.0,96781.0,0.18803802]
[1735814791995,0.01735872,96782.0,96781.0,0.18803802]
[1735814795051,0.01735872,96782.0,96781.0,0.18907067]
[1735814798791,0.0011708,96782.0,96781.0,0.18907067]
[1735814799649,0.0011708,96782.0,96781.0,0.68907067]
[1735814799970,0.0011708,96782.0,96781.0,0.68803802]
[1735814803415,0.0011708,96782.0,96781.0,0.68812342]
[1735814804217,0.0806708,96782.0,96781.0,0.54834375]
[1735814804453,0.0806708,96782.0,96781.0,0.5160854]
[1735814804959,0.0806708,96782.0,96781.0,0.62007172]
[1735814805106,0.0796708,96782.0,96781.0,0.61307172]
[1735814805471,0.0001708,96782.0,96781.0,0.60807172]
[1735814805655,0.0001708,96782.0,96781.0,0.61707172]
[1735814805852,0.0163598,96782.0,96781.0,0.60807172]
[1735814806210,0.0163598,96782.0,96781.0,0.61307172]
[1735814806410,0.0163598,96782.0,96781.0,0.60407172]
[1735814806637,0.0163598,96782.0,96781.0,0.60707172]
[1735814807652,0.0163598,96782.0,96781.0,0.60807172]
[1735814807852,0.0001708,96782.0,96781.0,0.61707172]
[1735814808059,0.0001708,96782.0,96781.0,0.60807172]
[1735814808273,0.0001708,96782.0,96781.0,0.60407172]
[1735814808431,0.0001708,96782.0,96781.0,0.61307172]
[1735814808640,0.0001708,96782.0,96781.0,0.61807172]
[1735814809124,0.0001708,96782.0,96781.0,0.61307172]
[1735814809523,0.0011708,96782.0,96781.0,0.61907172]
[1735814811027,0.01736001,96782.0,96781.0,0.61907172]
[1735814811232,0.0011708,96782.0,96781.0,0.61907172]
[1735814812694,0.0011708,96782.0,96781.0,0.11907172]
[1735814813986,0.01735938,96782.0,96781.0,0.11907172]
[1735814814823,0.283438,96788.0,96781.0,0.11907172]
[1735814814998,0.09054302,96800.0,96782.0,0.10398632]
[1735814815570,0.15,96818.0,96782.0,0.10398632]
[1735814816012,0.206611,96800.0,96782.0,0.10398632]
[1735814816212,0.206627,96793.0,96782.0,0.10398632]
[1735814817399,0.01618843,96791.0,96782.0,0.10398632]
[1735814817597,0.01618843,96791.0,96782.0,0.11298632]
[1735814818111,0.0757,96790.0,96782.0,0.10398632]
[1735814818318,0.0757,96790.0,96782.0,0.11498632]
[1735814818579,0.0757,96790.0,96782.0,0.002]
[1735814818750,0.0757,96790.0,96781.0,8.54e-05]
[1735814818974,0.206647,96784.0,96782.0,0.009]
[1735814819098,0.206647,96784.0,96782.0,0.004]
[1735814819564,0.206647,96784.0,96781.0,8.54e-05]
[1735814819724,0.206647,96784.0,96781.0,0.0030854]
[1735814819932,0.206637,96788.0,96781.0,0.0030854]
[1735814820611,0.206645,96785.0,96781.0,0.0030854]
[1735814821088,0.206645,96785.0,96782.0,0.009]
[1735814821491,0.206645,96785.0,96782.0,0.013]
[1735814821935,0.206645,96785.0,96782.0,0.009]
[1735814822137,0.206645,96785.0,96781.0,0.0090854]
[1735814822346,0.206645,96785.0,96782.0,0.004]
[1735814822968,0.206645,96785.0,96782.0,0.013]
[1735814823189,0.206637,96788.0,96782.0,0.013]
[1735814823600,0.206637,96788.0,96782.0,0.009]
[1735814824653,0.206637,96788.0,96781.0,8.54e-05]
[1735814824831,0.206645,96785.0,96781.0,8.54e-05]
[1735814825035,0.206645,96785.0,96781.0,0.0130854]
[1735814825522,0.206645,96785.0,96782.0,0.009]
[1735814825890,0.206645,96785.0,96781.0,0.0030854]
[1735814826334,0.206645,96785.0,96781.0,0.0090854]
[1735814826512,0.206645,96785.0,96781.0,0.0040854]
[1735814827709,0.206645,96785.0,96782.0,0.009]
[1735814828308,0.206645,96785.0,96781.0,0.0040854]
[1735814828716,0.206645,96785.0,96781.0,8.54e-05]
[1735814828915,0.206645,96785.0,96782.0,0.0038]
[1735814829473,0.206645,96785.0,96781.0,0.0090854]
[1735814829875,0.206645,96785.0,96781.0,0.0130854]
[1735814830813,0.206645,96785.0,96781.0,0.0040854]
[1735814831015,0.0161894,96787.0,96782.0,0.009]
[1735814831549,0.01623868,96787.0,96782.0,0.009]
[1735814831960,0.01623868,96787.0,96781.0,0.0090854]
[1735814832108,4.928e-05,96787.0,96782.0,0.004]
[1735814832321,4.928e-05,96787.0,96782.0,0.013]
[1735814832768,4.928e-05,96787.0,96782.0,0.009]
[1735814834863,4.928e-05,96787.0,96782.0,0.013]
[1735814835064,0.01618913,96786.0,96782.0,0.013]
[1735814835918,0.01618913,96786.0,96782.0,0.009]
[1735814836385,0.01618913,96786.0,96782.0,0.013]
[1735814837763,0.01618913,96786.0,96782.0,0.004]
[1735814837963,0.01618913,96786.0,96782.0,0.013]
[1735814838941,4.928e-05,96787.0,96782.0,0.013]
[1735814839813,4.928e-05,96787.0,96782.0,0.009]
[1735814840222,4.928e-05,96787.0,96783.0,0.10398632]
[1735814840562,4.928e-05,96787.0,96784.0,0.023]
[1735814840761,4.928e-05,96787.0,96785.0,0.10398632]
[1735814842164,4.928e-05,96787.0,96785.0,0.11698632]
[1735814843371,0.01623733,96787.0,96785.0,0.11698632]
[1735814847160,0.01623733,96787.0,96785.0,0.013]
[1735814848355,0.01673733,96787.0,96785.0,0.013]
[1735814848575,0.206641,96786.0,96785.0,0.013]
[1735814848989,0.389541,96786.0,96785.0,0.013]
[1735814849398,0.289541,96786.0,96785.0,0.009]
[1735814849798,0.289541,96786.0,96785.0,0.013]
[1735814850838,0.289541,96786.0,96785.0,0.004]
[1735814851238,0.289541,96786.0,96785.0,0.009]
[1735814851601,0.289541,96786.0,96785.0,0.002]
[1735814851602,0.0829,96786.0,96785.0,0.002]
[1735814851933,0.0829,96786.0,96785.0,0.011]
[1735814852781,0.0829,96786.0,96782.0,8.54e-05]
[1735814852782,0.413286,96785.0,96782.0,8.54e-05]
[1735814854553,0.513286,96785.0,96782.0,0.0090854]
[1735814855379,0.1,96783.0,96782.0,0.0090854]
[1735814855554,0.1765,96783.0,96782.0,0.0120854]
[1735814855753,0.3265,96783.0,96782.0,0.0120854]
[1735814856159,0.3265,96783.0,96782.0,0.0090854]
[1735814856587,0.90236417,96783.0,96782.0,0.0090854]
[1735814856986,0.90236417,96783.0,96782.0,8.54e-05]
[1735814857429,0.90236417,96783.0,96782.0,0.0090854]
[1735814857624,0.90236417,96783.0,96782.0,0.0030854]
[1735814857826,0.67014119,96783.0,96782.0,0.0030854]
[1735814858177,0.67014119,96783.0,96782.0,0.0090854]
[1735814858303,0.67014119,96783.0,96782.0,8.54e-05]
[1735814858877,0.67014119,96783.0,96782.0,0.0090854]
[1735814860559,0.46599748,96783.0,96782.0,0.0090854]
[1735814860762,0.48218787,96783.0,96782.0,0.0090854]
[1735814861059,0.46599748,96783.0,96782.0,8.54e-05]
[1735814861261,0.46599748,96783.0,96782.0,0.0090854]
[1735814861678,0.3265,96783.0,96782.0,0.0090854]
[1735814862672,0.66974355,96783.0,96782.0,0.0090854]
[1735814863909,0.68593421,96783.0,96782.0,0.0090854]
[1735814864311,0.68593421,96783.0,96782.0,0.0085854]
[1735814864924,0.34269066,96783.0,96782.0,0.0085854]
[1735814866317,0.48212445,96783.0,96782.0,0.0085854]
[1735814868133,0.46593379,96783.0,96782.0,0.0085854]
[1735814871426,0.3265,96783.0,96782.0,0.0085854]
[1735814872563,0.34269066,96783.0,96782.0,0.0085854]
[1735814874768,0.43560202,96783.0,96782.0,0.0085854]
[1735814875753,0.43560202,96783.0,96782.0,0.0086708]
[1735814876150,0.43577282,96783.0,96782.0,0.0086708]
[1735814876986,0.34286146,96783.0,96782.0,0.0086708]
[1735814878341,0.3266708,96783.0,96782.0,0.0086708]
[1735814879621,0.2266708,96783.0,96782.0,0.0086708]
[1735814879826,0.1501708,96783.0,96782.0,0.0086708]
[1735814880649,0.0001708,96783.0,96782.0,0.0316708]
[1735814881424,0.1501708,96783.0,96782.0,0.0316708]
[1735814881626,0.1501708,96783.0,96782.0,0.0230854]
[1735814881994,0.1501708,96783.0,96782.0,0.0340854]
[1735814882563,0.0001708,96783.0,96782.0,0.0340854]
[1735814883064,0.01635963,96783.0,96782.0,0.0340854]
[1735814883287,0.01635963,96783.0,96782.0,0.1045854]
[1735814883487,0.01635963,96783.0,96782.0,0.1165854]
[1735814884070,0.01635963,96783.0,96782.0,0.1135854]
[1735814884574,0.01635963,96783.0,96782.0,0.1165854]
[1735814888090,0.0001708,96783.0,96782.0,0.1165854]
[1735814888674,0.0001708,96783.0,96782.0,0.26977172]
[1735814888889,0.0001708,96783.0,96782.0,0.47642072]
[1735814889496,0.0001708,96783.0,96782.0,0.47342072]
[1735814889871,0.0011708,96783.0,96782.0,0.47042072]
[1735814890232,0.0001708,96783.0,96782.0,0.46442072]
[1735814890435,0.0001708,96783.0,96782.0,0.47342072]
[1735814890720,0.0011708,96783.0,96782.0,0.57242072]
[1735814890881,0.0001708,96786.0,96784.0,0.1]
[1735814891225,0.0001708,96786.0,96785.0,0.56022932]
[1735814891375,0.0001708,96786.0,96785.0,0.71894586]
[1735814892684,0.01635605,96786.0,96785.0,0.71894586]
[1735814893574,0.01635605,96786.0,96785.0,0.72594586]
[1735814893777,0.01635605,96786.0,96785.0,0.73494586]
[1735814893981,0.01635605,96786.0,96785.0,0.72794586]
[1735814894248,0.01635605,96786.0,96785.0,0.73694586]
[1735814898968,0.0001708,96786.0,96785.0,0.73694586]
[1735814899916,0.0001708,96786.0,96785.0,1.23694586]
[1735814903500,0.01635638,96786.0,96785.0,1.23694586]
[1735814905214,0.01635638,96786.0,96785.0,1.38694586]
[1735814908803,0.0001708,96786.0,96785.0,1.38694586]
[1735814912519,0.0001708,96786.0,96785.0,0.92862932]
[1735814913301,0.01635664,96786.0,96785.0,0.95162932]
[1735814915373,0.01635664,96786.0,96785.0,1.08152932]
[1735814918053,0.0001708,96786.0,96785.0,1.08152932]
[1735814918551,0.0001708,96786.0,96785.0,1.00042932]
[1735814919372,0.0001708,96786.0,96785.0,1.03266604]
[1735814921473,0.01635648,96786.0,96785.0,1.18266604]
[1735814921699,0.0001708,96786.0,96785.0,1.18266604]
[1735814924081,0.0001708,96786.0,96785.0,1.41775766]
[1735814924689,0.01635614,96786.0,96785.0,1.41775766]
[1735814927854,0.0783,96814.0,96785.0,1.41775766]
[1735814927855,0.0783,96814.0,96806.0,0.206597]
[1735814928068,0.0783,96814.0,96808.0,0.023]
[1735814928069,0.00025092,96809.0,96808.0,0.023]
[1735814928271,0.00025092,96809.0,96808.0,0.12698632]
[1735814928675,0.12735092,96809.0,96808.0,0.12698632]
[1735814928897,0.33394292,96809.0,96808.0,0.12698632]
[1735814929692,0.33394292,96809.0,96808.0,0.13598632]
[1735814930034,0.12735092,96809.0,96808.0,0.13598632]
[1735814930586,0.12735092,96809.0,96808.0,0.14098632]
[1735814934466,0.12735092,96809.0,96808.0,0.18236232]
[1735814934838,0.14353588,96809.0,96808.0,0.18236232]
[1735814935947,0.14370668,96809.0,96808.0,0.18236232]
[1735814938042,0.12752172,96809.0,96808.0,0.18236232]
[1735814939021,0.07982172,96809.0,96808.0,0.18236232]
[1735814946188,0.12782172,96809.0,96808.0,0.078376]
[1735814947221,0.12782172,96809.0,96808.0,0.073376]
[1735814947647,0.12782172,96809.0,96808.0,0.075376]
[1735814947849,0.22075891,96809.0,96808.0,0.052376]
[1735814948092,0.22075891,96809.0,96808.0,0.043376]
[1735814948300,0.47075891,96809.0,96808.0,0.043376]
[1735814948620,0.47075891,96809.0,96808.0,0.011]
[1735814948756,0.37782172,96809.0,96808.0,0.011]
[1735814949130,0.37782172,96809.0,96808.0,0.002]
[1735814949455,0.48180804,96809.0,96808.0,0.011]
[1735814949642,0.206594,96808.0,96806.0,0.5]
[1735814949848,0.07982172,96809.0,96806.0,0.5]
[1735814950050,0.07982172,96809.0,96808.0,0.001]
[1735814950251,0.42294993,96809.0,96808.0,0.001]
[1735814950455,0.42294993,96809.0,96808.0,0.032]
[1735814951445,0.07982172,96809.0,96808.0,0.032]
[1735814952273,0.07982172,96809.0,96808.0,0.023]
[1735814953107,0.07982172,96809.0,96808.0,0.032]
[1735814953282,0.07982172,96809.0,96808.0,0.023]
[1735814953621,0.07982172,96809.0,96808.0,0.033]
[1735814954342,0.07982172,96809.0,96808.0,0.032]
[1735814954548,0.07982172,96809.0,96808.0,0.034]
[1735814955509,0.07982172,96809.0,96808.0,0.011]
[1735814956115,0.22672172,96809.0,96808.0,0.011]
[1735814956320,0.48070804,96809.0,96808.0,0.011]
[1735814956530,0.48070804,96809.0,96808.0,0.009]
[1735814956940,0.432907,96802.0,96801.0,8.54e-05]
[1735814958286,0.52582779,96802.0,96801.0,8.54e-05]
[1735814958515,0.62582779,96802.0,96801.0,8.54e-05]
[1735814959304,0.62582779,96802.0,96801.0,0.0090854]
[1735814959305,0.68349332,96802.0,96801.0,0.0090854]
[1735814959574,0.68349332,96802.0,96801.0,0.0100854]
[1735814959980,0.68349332,96802.0,96801.0,8.54e-05]
[1735814960375,0.77741411,96802.0,96801.0,0.0070854]
[1735814960783,0.77641411,96802.0,96801.0,0.0070854]
[1735814961183,0.77641411,96802.0,96801.0,0.0080854]
[1735814961736,0.77641411,96802.0,96801.0,0.0010854]
[1735814961934,0.77641411,96802.0,96801.0,0.0100854]
[1735814962277,0.77641411,96802.0,96801.0,0.0010854]
[1735814962487,0.68349332,96802.0,96801.0,0.0080854]
[1735814962909,0.68349332,96802.0,96801.0,0.0070854]
[1735814963194,0.68449332,96802.0,96801.0,0.0070854]
[1735814963405,0.74654252,96802.0,96801.0,0.0070854]
[1735814963575,0.77741411,96802.0,96801.0,0.0070854]
[1735814964421,0.78133314,96802.0,96801.0,0.0070854]
[1735814964800,0.68841235,96802.0,96801.0,0.0070854]
[1735814966217,0.68841235,96802.0,96801.0,4e-07]
[1735814966418,0.68449332,96802.0,96801.0,4e-07]
[1735814966982,0.79239867,96802.0,96801.0,4e-07]
[1735814967179,0.89239867,96802.0,96801.0,4e-07]
[1735814967478,0.99239867,96802.0,96801.0,4e-07]
[1735814967882,0.99249388,96802.0,96801.0,4e-07]
[1735814968794,0.88850756,96802.0,96801.0,4e-07]
[1735814969838,0.206641,96786.0,96785.0,8.54e-05]
[1735814970044,0.54332732,96786.0,96785.0,8.54e-05]
[1735814972595,0.54432732,96786.0,96785.0,0.0090854]
[1735814972827,0.64432732,96786.0,96785.0,0.0090854]
[1735814972937,0.68972732,96786.0,96785.0,0.0090854]
[1735814974730,0.33,96782.0,96781.0,6e-07]
[1735814974937,0.43398632,96782.0,96781.0,6e-07]
[1735814975076,0.64063532,96782.0,96781.0,6e-07]
[1735814975288,0.640881,96782.0,96781.0,6e-07]
[1735814975490,0.64489524,96782.0,96781.0,6e-07]
[1735814975920,0.64789524,96782.0,96781.0,6e-07]
[1735814976121,0.8445047,96782.0,96781.0,6e-07]
[1735814976392,0.9445047,96782.0,96781.0,6e-07]
[1735814976542,0.206726,96746.0,96745.0,0.01590776]
[1735814976720,0.20672,96749.0,96740.0,0.05575777]
[1735814976927,0.206737,96741.0,96740.0,0.05575777]
[1735814977866,0.206737,96741.0,96740.0,0.05580705]
[1735814978291,0.206737,96741.0,96740.0,0.09721205]
[1735814978838,0.206737,96741.0,96740.0,0.04145428]
[1735814978839,0.306737,96741.0,96740.0,0.04145428]
[1735814979373,0.307737,96741.0,96740.0,0.05045428]
[1735814979584,0.307737,96741.0,96740.0,0.00904928]
[1735814979795,0.307737,96741.0,96740.0,0.01404928]
[1735814979990,0.32393378,96741.0,96740.0,0.00504928]
[1735814980263,0.32293378,96741.0,96740.0,4.928e-05]
[1735814980642,0.32293378,96741.0,96740.0,0.00104928]
[1735814981385,0.32393378,96741.0,96740.0,0.00104928]
[1735814981941,0.47393378,96741.0,96740.0,0.00104928]
[1735814983120,0.47393378,96741.0,96740.0,0.00113468]
[1735814983557,0.32393378,96741.0,96740.0,0.00113468]
[1735814984872,0.32293378,96741.0,96740.0,0.00113468]
[1735814985034,0.32293378,96741.0,96740.0,0.00013468]
[1735814985240,0.32393378,96741.0,96740.0,0.03013468]
[1735814985481,0.32393378,96741.0,96740.0,0.03113468]
[1735814985687,0.32293378,96741.0,96740.0,0.02413468]
[1735814985886,0.32393378,96741.0,96740.0,0.03113468]
[1735814986094,0.32393378,96741.0,96740.0,0.02413468]
[1735814986358,0.32393378,96741.0,96740.0,0.02313468]
[1735814986574,0.32493378,96741.0,96740.0,0.03013468]
[1735814987167,0.32493378,96741.0,96740.0,0.03113468]
[1735814988474,0.32493378,96741.0,96740.0,0.03013468]
[1735814988647,0.308737,96741.0,96740.0,0.03113468]
[1735814991393,0.002,96741.0,96740.0,0.03113468]
[1735814992037,0.01819657,96741.0,96740.0,0.03113468]
[1735814995774,0.01836737,96741.0,96740.0,0.03113468]
[1735814996978,0.0021708,96741.0,96740.0,0.03113468]
[1735815001881,0.01836739,96741.0,96740.0,0.03113468]
[1735815005622,0.0021708,96741.0,96740.0,0.03113468]
[1735815011700,0.01836787,96741.0,96740.0,0.03113468]
[1735815012033,0.0021708,96741.0,96740.0,0.03113468]
[1735815015162,0.01836789,96741.0,96740.0,0.03113468]
[1735815018099,0.0021708,96741.0,96740.0,0.03113468]
[1735815021495,0.0021708,96741.0,96740.0,0.05195309]
[1735815024658,0.0021708,96741.0,96740.0,0.03113468]
[1735815024889,0.0183665,96741.0,96740.0,0.03113468]
[1735815031727,0.0021708,96741.0,96740.0,0.03113468]
[1735815033877,0.00744888,96741.0,96740.0,0.03113468]
[1735815034931,0.02364507,96741.0,96740.0,0.03113468]
[1735815036649,0.23038207,96741.0,96740.0,0.03113468]
[1735815036859,0.56048207,96741.0,96740.0,0.00813468]
[1735815037006,0.54428588,96741.0,96740.0,0.00813468]
[1735815037846,0.54428588,96741.0,96740.0,0.03113468]
[1735815038046,0.44428588,96741.0,96740.0,0.03113468]
[1735815038249,0.36418588,96741.0,96740.0,0.03113468]
[1735815038551,0.45680902,96741.0,96740.0,0.03113468]
[1735815039688,0.36418588,96741.0,96740.0,0.03113468]
[1735815041280,0.38038272,96741.0,96740.0,0.03113468]
[1735815041614,0.00744888,96741.0,96740.0,0.03113468]
[1735815044554,0.02364499,96741.0,96740.0,0.03113468]
[1735815052031,0.00744888,96741.0,96740.0,0.03113468]
[1735815054901,0.02364504,96741.0,96740.0,0.03113468]
[1735815058792,0.00744888,96741.0,96740.0,0.03113468]
[1735815062844,0.00744888,96741.0,96740.0,0.135121]
[1735815063015,0.00744888,96741.0,96740.0,0.217321]
[1735815063214,0.0021708,96741.0,96740.0,0.217321]
[1735815063415,0.01836613,96741.0,96740.0,0.217321]
[1735815063984,0.01836613,96741.0,96740.0,0.135121]
[1735815065556,0.02358032,96741.0,96740.0,0.135121]
[1735815066112,0.02358032,96741.0,96740.0,0.03113468]
[1735815074609,0.02358032,96741.0,96740.0,0.03063468]
[1735815075736,0.02358032,96741.0,96740.0,0.03072008]
[1735815077166,0.00738499,96741.0,96740.0,0.03072008]
[1735815077567,0.0021708,96741.0,96740.0,0.03072008]
[1735815078215,0.0021708,96741.0,96740.0,0.3414454]
[1735815079196,0.0021708,96741.0,96740.0,0.10398632]
[1735815080630,0.0021708,96741.0,96736.0,0.206747]
[1735815080960,0.0021708,96741.0,96737.0,0.10398632]
[1735815081510,0.0021708,96741.0,96738.0,0.229743]
[1735815081733,0.01636644,96741.0,96738.0,0.229743]
[1735815082124,0.0011708,96741.0,96738.0,0.229743]
[1735815082536,0.0001708,96741.0,96738.0,0.229743]
[1735815083094,0.0001708,96741.0,96738.0,0.230743]
[1735815083573,0.0001708,96741.0,96738.0,0.229743]
[1735815083775,0.0001708,96741.0,96738.0,0.231743]
[1735815084411,0.0011708,96741.0,96738.0,0.240743]
[1735815084839,0.01736628,96741.0,96738.0,0.231743]
[1735815084971,0.01836628,96741.0,96738.0,0.447486]
[1735815085168,0.01836628,96741.0,96738.0,0.445486]
[1735815085376,0.01836628,96741.0,96738.0,0.447486]
[1735815085770,0.01636628,96741.0,96738.0,0.438486]
[1735815085984,0.01636628,96741.0,96738.0,0.436486]
[1735815086184,0.01736628,96741.0,96738.0,0.242743]
[1735815086866,0.01736628,96741.0,96738.0,0.2428284]
[1735815088440,0.0011708,96741.0,96738.0,0.2428284]
[1735815089196,0.1078928,96748.0,96738.0,0.2428284]
[1735815089399,0.19262314,96749.0,96738.0,0.2428284]
[1735815089770,0.206722,96748.0,96740.0,0.023]
[1735815089946,0.21186908,96748.0,96740.0,0.023]
[1735815090902,0.21186908,96748.0,96739.0,0.023]
[1735815091278,0.21186908,96748.0,96738.0,0.0230854]
[1735815091481,0.01619554,96746.0,96738.0,0.0230854]
[1735815091694,0.01619554,96746.0,96738.0,0.0320854]
[1735815091893,0.00444236,96745.0,96738.0,0.0260854]
[1735815092196,0.00444236,96745.0,96739.0,0.009]
[1735815092396,0.00444236,96745.0,96738.0,0.2298274]
[1735815092902,0.00444236,96745.0,96738.0,0.2418274]
[1735815093130,0.00444236,96745.0,96738.0,0.2328274]
[1735815093313,0.00444236,96745.0,96738.0,0.2298274]
[1735815093511,0.00444236,96745.0,96738.0,0.2328274]
[1735815094393,0.00544236,96745.0,96739.0,0.009]
[1735815094724,0.00444236,96745.0,96738.0,0.2328274]
[1735815095055,0.00544236,96745.0,96738.0,0.2418274]
[1735815095187,0.00544236,96745.0,96738.0,0.2328274]
[1735815095389,0.00544236,96745.0,96738.0,0.2298274]
[1735815095591,0.00644236,96745.0,96739.0,0.009]
[1735815095792,0.00444236,96745.0,96739.0,0.003]
[1735815096386,0.00544236,96745.0,96739.0,0.003]
[1735815096614,0.00544236,96745.0,96738.0,0.0320854]
[1735815096822,0.00544236,96745.0,96738.0,0.0350854]
[1735815097246,0.1,96739.0,96738.0,0.0120854]
[1735815097446,0.1,96739.0,96738.0,8.54e-05]
[1735815097651,0.10447005,96739.0,96738.0,8.54e-05]
[1735815098317,0.18447005,96739.0,96738.0,8.54e-05]
[1735815098550,0.18547005,96739.0,96738.0,0.0090854]
[1735815099597,0.18547005,96739.0,96738.0,0.0120854]
[1735815100206,0.52914657,96739.0,96738.0,0.0120854]
[1735815101401,0.18547005,96739.0,96738.0,0.0120854]
[1735815102324,0.32500613,96739.0,96738.0,0.0120854]
[1735815103220,0.18547005,96739.0,96738.0,0.0120854]
[1735815103847,0.2016676,96739.0,96738.0,0.0120854]
[1735815105371,0.29465375,96739.0,96738.0,0.0120854]
[1735815107896,0.21465375,96739.0,96738.0,0.0120854]
[1735815108911,0.1984562,96739.0,96738.0,0.0120854]
[1735815109104,0.33337005,96739.0,96738.0,0.0120854]
[1735815109350,0.48345637,96739.0,96738.0,0.0120854]
[1735815110436,1.01215137,96739.0,96738.0,0.0120854]
[1735815110963,1.01215137,96739.0,96738.0,0.0090854]
[1735815111312,1.01115137,96739.0,96738.0,8.54e-05]
[1735815111509,0.90474055,96739.0,96738.0,0.0060854]
[1735815111917,0.82730979,96739.0,96738.0,8.54e-05]
[1735815112208,0.82830979,96739.0,96738.0,0.0060854]
[1735815112355,0.82630979,96739.0,96738.0,8.54e-05]
[1735815112555,1.05861177,96739.0,96738.0,0.0050854]
[1735815112758,1.06061177,96739.0,96738.0,0.0050854]
[1735815112962,1.16459809,96739.0,96738.0,0.0050854]
[1735815113168,1.18079688,96739.0,96738.0,0.0050854]
[1735815113637,1.07681056,96739.0,96738.0,0.0050854]
[1735815114226,0.84450858,96739.0,96738.0,0.0050854]
[1735815116663,1.07655649,96739.0,96738.0,0.0050854]
[1735815117250,1.0603577,96739.0,96738.0,0.0050854]
[1735815117424,1.1603577,96739.0,96738.0,0.0050854]
[1735815117627,1.26434402,96739.0,96738.0,0.0050854]
[1735815118419,1.0603577,96739.0,96738.0,0.0050854]
[1735815119076,0.92830979,96739.0,96738.0,0.0050854]
[1735815120240,0.82830979,96739.0,96738.0,0.0050854]
[1735815121247,1.01388022,96739.0,96738.0,0.0050854]
[1735815121617,1.11388022,96739.0,96738.0,0.0050854]
[1735815121766,1.21786654,96739.0,96738.0,0.0050854]
[1735815122353,1.03229611,96739.0,96738.0,0.0050854]
[1735815122489,0.92830979,96739.0,96738.0,0.0050854]
[1735815123083,0.92830979,96739.0,96731.0,8e-08]
[1735815123084,0.5758,96732.0,96731.0,8e-08]
[1735815123287,0.68415361,96732.0,96731.0,3.6e-07]
[1735815123683,0.69090961,96732.0,96731.0,3.6e-07]
[1735815124104,0.58692329,96732.0,96731.0,3.6e-07]
[1735815124282,0.58892329,96732.0,96731.0,3.6e-07]
[1735815124498,0.59292329,96732.0,96731.0,3.6e-07]
[1735815124929,0.60512468,96732.0,96731.0,0.00400036]
[1735815125331,0.78060454,96732.0,96731.0,3.6e-07]
[1735815125532,0.88160454,96732.0,96731.0,0.00600036]
[1735815125735,0.808111,96732.0,96731.0,3.6e-07]
[1735815126983,0.808111,96732.0,96704.0,0.0051704]
[1735815126984,0.306814,96705.0,96704.0,0.0051704]
[1735815127119,0.21120555,96705.0,96704.0,0.00566183]
[1735815127316,0.21120555,96705.0,96704.0,0.02866183]
[1735815127689,0.22740801,96705.0,96704.0,0.10596183]
[1735815128121,0.22740801,96705.0,96704.0,0.10796183]
[1735815128329,0.22840801,96705.0,96704.0,0.10796183]
[1735815128735,0.22740801,96705.0,96704.0,0.10596183]
[1735815128936,0.22840801,96705.0,96704.0,0.10796183]
[1735815129891,0.32840801,96705.0,96704.0,0.00766183]
[1735815130301,0.32740801,96705.0,96704.0,0.00566183]
[1735815130447,0.32740801,96705.0,96704.0,0.00866183]
[1735815130659,0.32840801,96705.0,96704.0,0.00866183]
[1735815130973,0.32740801,96705.0,96704.0,0.00566183]
[1735815131221,0.31220555,96705.0,96704.0,0.00566183]
[1735815131390,0.31220555,96705.0,96704.0,0.00666183]
[1735815131768,0.31320555,96705.0,96704.0,0.00566183]
[1735815131975,0.31120555,96705.0,96704.0,0.00566183]
[1735815132172,0.31220555,96705.0,96704.0,0.00666183]
[1735815132550,0.54295671,96705.0,96704.0,0.00666183]
[1735815133646,0.46220555,96705.0,96704.0,0.00666183]
[1735815134695,0.46220555,96705.0,96704.0,0.00157683]
[1735815135370,0.47840914,96705.0,96704.0,0.00157683]
[1735815136813,0.46220555,96705.0,96704.0,0.00157683]
[1735815137038,0.46120555,96705.0,96704.0,0.00057683]
[1735815137463,0.46220555,96705.0,96704.0,0.00157683]
[1735815138436,0.206857,96685.0,96684.0,0.06069223]
[1735815138769,0.21111739,96685.0,96684.0,0.06069223]
[1735815139205,0.21111739,96685.0,96684.0,0.10212223]
[1735815139906,0.21111739,96685.0,96684.0,0.04143]
[1735815140303,0.21211739,96685.0,96684.0,0.04143]
[1735815140532,0.21211739,96685.0,96684.0,0.04643]
[1735815141356,0.21211739,96685.0,96684.0,0.12493]
[1735815143015,0.22832173,96685.0,96684.0,0.12493]
[1735815146776,0.22832173,96685.0,96684.0,0.04643]
[1735815148295,0.22832173,96685.0,96684.0,0.0465154]
[1735815148830,0.21211739,96685.0,96684.0,0.0465154]
[1735815150463,0.00526039,96685.0,96684.0,0.0465154]
[1735815151976,0.0214648,96685.0,96684.0,0.0465154]
[1735815152201,0.0214648,96685.0,96684.0,0.0050854]
[1735815152991,0.1214648,96685.0,96684.0,0.0050854]
[1735815153173,0.1214648,96685.0,96672.0,0.041434]